bitfinex-derivatives/quotes_BTCF0:USTF0_20241020
["timestamp","ask_amount","ask_price","bid_price","bid_amount"]
[1729426208813,1.52692109,68472.0,68471.0,0.073027]
[1729426212623,0.02692109,68472.0,68471.0,0.073027]
[1729426212923,0.3608,68473.0,68471.0,0.073027]
[1729426214427,0.38706136,68473.0,68472.0,0.073026]
[1729426215928,0.46766315,68473.0,68472.0,0.073026]
[1729426221931,0.44140179,68473.0,68472.0,0.073026]
[1729426224038,0.3608,68473.0,68472.0,0.073026]
[1729426225536,0.38660242,68473.0,68472.0,0.073026]
[1729426231038,0.42236981,68473.0,68472.0,0.073026]
[1729426235839,0.4672018,68473.0,68472.0,0.073026]
[1729426237546,0.1064018,68473.0,68472.0,0.073026]
[1729426238946,0.02580242,68473.0,68472.0,0.073026]
[1729426239250,0.433822,68476.0,68475.0,0.073022]
[1729426239545,0.433822,68476.0,68475.0,0.13146442]
[1729426241643,0.46030318,68476.0,68475.0,0.13146442]
[1729426243049,0.46030318,68476.0,68475.0,0.073022]
[1729426246940,0.46030318,68476.0,68475.0,0.13147152]
[1729426247149,0.46030318,68476.0,68475.0,0.073022]
[1729426253953,0.49607023,68476.0,68475.0,0.073022]
[1729426256052,0.5409018,68476.0,68475.0,0.073022]
[1729426261259,0.38728118,68476.0,68475.0,0.073022]
[1729426269059,0.4678785,68476.0,68475.0,0.073022]
[1729426276266,0.38728118,68476.0,68475.0,0.073022]
[1729426284270,0.46787852,68476.0,68475.0,0.073022]
[1729426291164,0.38728118,68476.0,68475.0,0.073022]
[1729426299491,0.02648118,68476.0,68475.0,0.073022]
[1729426299674,0.07302,68477.0,68475.0,0.073022]
[1729426300284,0.07302,68477.0,68476.0,0.05846492]
[1729426301078,0.43382,68477.0,68476.0,0.05846492]
[1729426304482,0.09897427,68477.0,68476.0,0.05846492]
[1729426304674,0.45977427,68477.0,68476.0,0.05846492]
[1729426306379,0.1795726,68477.0,68475.0,0.073022]
[1729426306579,0.08059833,68476.0,68475.0,0.073022]
[1729426306980,0.13298348,68476.0,68475.0,0.073022]
[1729426307385,0.08059833,68476.0,68475.0,0.073022]
[1729426307587,0.13298348,68476.0,68475.0,0.073022]
[1729426307791,0.08059833,68476.0,68475.0,0.073022]
[1729426308290,0.13298348,68476.0,68475.0,0.073022]
[1729426308589,0.1329835,68476.0,68475.0,0.073022]
[1729426311587,0.44139835,68476.0,68475.0,0.073022]
[1729426311788,0.1329835,68476.0,68475.0,0.073022]
[1729426312097,0.44139835,68476.0,68475.0,0.073022]
[1729426312595,0.08059835,68476.0,68475.0,0.073022]
[1729426312787,0.44139835,68476.0,68475.0,0.073022]
[1729426313390,0.08059835,68476.0,68475.0,0.073022]
[1729426313590,0.44139835,68476.0,68475.0,0.073022]
[1729426313791,0.08059835,68476.0,68475.0,0.073022]
[1729426313992,0.44139835,68476.0,68475.0,0.073022]
[1729426314300,0.3608,68476.0,68475.0,0.073022]
[1729426314802,0.09897427,68477.0,68475.0,0.073022]
[1729426314999,0.09897427,68477.0,68476.0,0.05845988]
[1729426315198,0.45977427,68477.0,68476.0,0.05845988]
[1729426316003,0.09897427,68477.0,68476.0,0.05845988]
[1729426316393,0.45977427,68477.0,68476.0,0.05845988]
[1729426318506,0.09897427,68477.0,68476.0,0.05845988]
[1729426318701,0.45977427,68477.0,68476.0,0.05845988]
[1729426319102,0.09897427,68477.0,68476.0,0.05845988]
[1729426319302,0.45977427,68477.0,68476.0,0.05845988]
[1729426320209,0.38675427,68477.0,68476.0,0.13148088]
[1729426321405,0.46735275,68477.0,68476.0,0.073021]
[1729426322306,0.46735275,68477.0,68473.0,0.073024]
[1729426322512,0.073023,68475.0,68473.0,0.073024]
[1729426322701,0.08059848,68474.0,68473.0,0.073024]
[1729426323303,0.073024,68474.0,68473.0,0.073024]
[1729426323501,0.15362248,68474.0,68473.0,0.073024]
[1729426323702,0.15362311,68474.0,68473.0,0.073024]
[1729426323908,0.15362311,68474.0,68465.0,0.3608]
[1729426323909,0.08059911,68474.0,68465.0,0.3608]
[1729426324099,0.073028,68470.0,68469.0,0.073028]
[1729426324306,0.15362711,68470.0,68469.0,0.073028]
[1729426325211,0.10879527,68470.0,68469.0,0.073028]
[1729426326912,0.10879676,68470.0,68469.0,0.073028]
[1729426327114,0.13482669,68470.0,68469.0,0.073028]
[1729426328307,0.09905793,68470.0,68469.0,0.073028]
[1729426337420,0.09905793,68470.0,68469.0,0.13144549]
[1729426340920,0.02602993,68470.0,68469.0,0.13144549]
[1729426341127,0.104325,68473.0,68471.0,0.073026]
[1729426341321,0.104325,68473.0,68472.0,0.073026]
[1729426343521,0.18492743,68473.0,68472.0,0.073026]
[1729426344629,0.21061525,68473.0,68472.0,0.073026]
[1729426346829,0.21061581,68473.0,68472.0,0.073026]
[1729426350118,0.13759081,68473.0,68472.0,0.073026]
[1729426350817,0.09275681,68473.0,68472.0,0.073026]
[1729426351433,0.05698782,68473.0,68472.0,0.1314447]
[1729426352622,0.05698782,68473.0,68472.0,0.073026]
[1729426355031,0.05698782,68473.0,68472.0,0.13149139]
[1729426358444,0.10182162,68473.0,68472.0,0.073026]
[1729426358629,0.13759045,68473.0,68472.0,0.073026]
[1729426366446,0.05698782,68473.0,68472.0,0.13149139]
[1729426371044,0.05698782,68473.0,68472.0,0.073026]
[1729426371245,0.05698782,68473.0,68472.0,0.13148648]
[1729426371543,0.05698782,68473.0,68472.0,0.13148553]
[1729426373644,0.05698782,68473.0,68472.0,0.073026]
[1729426373645,0.13758943,68473.0,68472.0,0.073026]
[1729426375742,0.57141443,68473.0,68472.0,0.073026]
[1729426380047,0.5265812,68473.0,68472.0,0.073026]
[1729426380348,0.57141585,68473.0,68472.0,0.073026]
[1729426380833,0.57141778,68473.0,68472.0,0.073026]
[1729426381443,0.49081282,68473.0,68472.0,0.073026]
[1729426383146,0.49081282,68473.0,68472.0,0.13148553]
[1729426384348,0.49081282,68473.0,68472.0,0.073026]
[1729426385647,0.49081282,68473.0,68472.0,0.13148553]
[1729426386243,0.49081282,68473.0,68472.0,0.073026]
[1729426394851,0.41778782,68473.0,68472.0,0.073026]
[1729426396858,0.49839302,68473.0,68472.0,0.073026]
[1729426400355,0.57141802,68473.0,68472.0,0.073026]
[1729426404057,0.49081282,68473.0,68472.0,0.073026]
[1729426406455,0.49081282,68473.0,68472.0,0.13148553]
[1729426410660,0.49081282,68473.0,68472.0,0.073026]
[1729426417469,0.49081282,68473.0,68472.0,0.13148553]
[1729426417971,0.49081282,68473.0,68472.0,0.073026]
[1729426418772,0.49081282,68473.0,68472.0,0.13148553]
[1729426418973,0.57141721,68473.0,68472.0,0.073026]
[1729426426187,0.49081282,68473.0,68472.0,0.073026]
[1729426434196,0.57141887,68473.0,68472.0,0.073026]
[1729426438595,0.21061887,68473.0,68472.0,0.073026]
[1729426438992,0.57141887,68473.0,68472.0,0.073026]
[1729426439891,0.21061887,68473.0,68472.0,0.073026]
[1729426440090,0.57141887,68473.0,68472.0,0.073026]
[1729426440299,0.57141822,68473.0,68472.0,0.073026]
[1729426440988,0.49081282,68473.0,68472.0,0.073026]
[1729426441199,0.13001282,68473.0,68472.0,0.073026]
[1729426441395,0.49081282,68473.0,68472.0,0.073026]
[1729426441797,0.13001282,68473.0,68472.0,0.073026]
[1729426442184,0.49081282,68473.0,68472.0,0.073026]
[1729426443193,0.13001282,68473.0,68472.0,0.073026]
[1729426443596,0.49081282,68473.0,68472.0,0.073026]
[1729426449099,0.57141753,68473.0,68472.0,0.073026]
[1729426451111,0.21061753,68473.0,68472.0,0.073026]
[1729426451308,0.57141753,68473.0,68472.0,0.073026]
[1729426453610,0.57141741,68473.0,68472.0,0.073026]
[1729426455305,0.21061741,68473.0,68472.0,0.073026]
[1729426455506,0.57141741,68473.0,68472.0,0.073026]
[1729426456108,0.49081282,68473.0,68472.0,0.073026]
[1729426457310,0.41778782,68473.0,68472.0,0.073026]
[1729426457815,0.05698782,68473.0,68472.0,0.073026]
[1729426458015,0.41778782,68473.0,68472.0,0.13148553]
[1729426459223,0.41778782,68473.0,68472.0,0.073026]
[1729426463022,1.91778782,68473.0,68472.0,0.073026]
[1729426464015,1.63759288,68473.0,68472.0,0.073026]
[1729426464217,1.99839288,68473.0,68472.0,0.073026]
[1729426465629,1.63759288,68473.0,68472.0,0.073026]
[1729426465833,1.99839288,68473.0,68472.0,0.073026]
[1729426466326,1.63759288,68473.0,68472.0,0.073026]
[1729426466528,1.99839288,68473.0,68472.0,0.073026]
[1729426467326,1.63759288,68473.0,68472.0,0.073026]
[1729426467514,1.99839288,68473.0,68472.0,0.073026]
[1729426467828,1.63759288,68473.0,68472.0,0.073026]
[1729426468228,1.99839316,68473.0,68472.0,0.073026]
[1729426468421,1.63759316,68473.0,68472.0,0.073026]
[1729426468624,1.99839316,68473.0,68472.0,0.073026]
[1729426469719,1.95355785,68473.0,68472.0,0.073026]
[1729426471123,1.91778782,68473.0,68472.0,0.073026]
[1729426471728,1.55698782,68473.0,68472.0,0.073026]
[1729426471922,1.91778782,68473.0,68472.0,0.073026]
[1729426472226,1.55698782,68473.0,68472.0,0.073026]
[1729426472622,1.91778782,68473.0,68472.0,0.073026]
[1729426473334,1.55698782,68473.0,68472.0,0.073026]
[1729426473537,1.91778782,68473.0,68472.0,0.073026]
[1729426474832,1.55698782,68473.0,68472.0,0.073026]
[1729426475032,1.91778782,68473.0,68472.0,0.073026]
[1729426475928,1.55698782,68473.0,68472.0,0.073026]
[1729426476233,1.91778782,68473.0,68472.0,0.073026]
[1729426476534,1.55698782,68473.0,68472.0,0.073026]
[1729426476725,1.91778782,68473.0,68472.0,0.073026]
[1729426477122,1.55698782,68473.0,68472.0,0.073026]
[1729426477333,1.91778782,68473.0,68472.0,0.073026]
[1729426479231,1.55698782,68473.0,68472.0,0.073026]
[1729426479427,1.91778782,68473.0,68472.0,0.073026]
[1729426479739,1.55698782,68473.0,68472.0,0.073026]
[1729426480032,1.91778782,68473.0,68472.0,0.073026]
[1729426480923,1.55698782,68473.0,68472.0,0.073026]
[1729426481130,1.91778782,68473.0,68472.0,0.073026]
[1729426481338,1.55698782,68473.0,68472.0,0.073026]
[1729426481638,1.91778782,68473.0,68472.0,0.073026]
[1729426482833,1.55698782,68473.0,68472.0,0.073026]
[1729426483037,1.91778782,68473.0,68472.0,0.073026]
[1729426484839,1.55698782,68473.0,68472.0,0.073026]
[1729426485338,1.91778782,68473.0,68472.0,0.073026]
[1729426485732,1.55698782,68473.0,68472.0,0.073026]
[1729426485933,1.91778782,68473.0,68472.0,0.073026]
[1729426486129,1.99839256,68473.0,68472.0,0.073026]
[1729426486939,1.63759256,68473.0,68472.0,0.073026]
[1729426487136,1.99839256,68473.0,68472.0,0.073026]
[1729426488842,1.95355759,68473.0,68472.0,0.073026]
[1729426491445,0.45355759,68473.0,68472.0,0.073026]
[1729426491646,0.09275759,68473.0,68472.0,0.073026]
[1729426491847,0.45355759,68473.0,68472.0,0.073026]
[1729426492343,0.09275759,68473.0,68472.0,0.073026]
[1729426492647,0.45355759,68473.0,68472.0,0.073026]
[1729426492849,0.49839257,68473.0,68472.0,0.073026]
[1729426494237,0.41778782,68473.0,68472.0,0.073026]
[1729426495646,0.05698782,68473.0,68472.0,0.073026]
[1729426495850,0.41778782,68473.0,68472.0,0.073026]
[1729426496154,0.05698782,68473.0,68472.0,0.073026]
[1729426496343,0.41778782,68473.0,68472.0,0.073026]
[1729426496853,0.05698782,68473.0,68472.0,0.073026]
[1729426497039,0.41778782,68473.0,68472.0,0.073026]
[1729426500048,0.05698782,68473.0,68472.0,0.073026]
[1729426500346,0.41778782,68473.0,68472.0,0.073026]
[1729426500741,0.05698782,68473.0,68472.0,0.073026]
[1729426500941,0.49081282,68473.0,68472.0,0.073026]
[1729426503446,0.41778782,68473.0,68472.0,0.073026]
[1729426504039,0.05698782,68473.0,68472.0,0.073026]
[1729426504241,0.41778782,68473.0,68472.0,0.073026]
[1729426505045,0.05698782,68473.0,68472.0,0.073026]
[1729426505452,0.41778782,68473.0,68472.0,0.073026]
[1729426505644,0.05698782,68473.0,68472.0,0.073026]
[1729426505844,0.41778782,68473.0,68472.0,0.073026]
[1729426506052,0.05698782,68473.0,68472.0,0.073026]
[1729426506349,0.41778782,68473.0,68472.0,0.073026]
[1729426506549,0.05698782,68473.0,68472.0,0.073026]
[1729426506956,0.41778782,68473.0,68472.0,0.073026]
[1729426507746,0.38648782,68473.0,68472.0,0.13149211]
[1729426508148,0.38648782,68473.0,68472.0,0.073026]
[1729426508360,0.38648782,68473.0,68472.0,0.13148632]
[1729426509145,0.38648782,68473.0,68472.0,0.073026]
[1729426509341,0.4670879,68473.0,68472.0,0.073026]
[1729426510948,0.46708608,68473.0,68472.0,0.073026]
[1729426511151,0.42225471,68473.0,68472.0,0.073026]
[1729426512456,0.46708608,68473.0,68472.0,0.073026]
[1729426516263,0.38648782,68473.0,68472.0,0.073026]
[1729426517358,0.38648782,68473.0,68472.0,0.13144113]
[1729426519166,0.38648782,68473.0,68472.0,0.073026]
[1729426521461,0.38648782,68473.0,68472.0,0.13143623]
[1729426523361,0.38648782,68473.0,68472.0,0.073026]
[1729426524365,0.46708921,68473.0,68472.0,0.073026]
[1729426531372,0.38648782,68473.0,68472.0,0.073026]
[1729426536684,0.38648782,68473.0,68472.0,0.14609898]
[1729426537885,0.38648782,68473.0,68472.0,0.073026]
[1729426538389,0.38648782,68473.0,68472.0,0.14609898]
[1729426538773,0.38648782,68473.0,68472.0,0.073026]
[1729426539380,0.46708997,68473.0,68472.0,0.073026]
[1729426539869,0.38648782,68473.0,68472.0,0.073026]
[1729426540075,0.4670899,68473.0,68472.0,0.073026]
[1729426544487,0.5401149,68473.0,68472.0,0.073026]
[1729426546378,0.45951282,68473.0,68472.0,0.13147554]
[1729426547886,0.45951282,68473.0,68472.0,0.13147765]
[1729426548281,0.45951282,68473.0,68472.0,0.073026]
[1729426554286,0.54011457,68473.0,68472.0,0.073026]
[1729426554588,0.5401149,68473.0,68472.0,0.073026]
[1729426559611,0.54011707,68473.0,68472.0,0.073026]
[1729426561301,0.45951282,68473.0,68472.0,0.073026]
[1729426561604,0.45951282,68473.0,68472.0,0.13148801]
[1729426563300,0.45951282,68473.0,68472.0,0.073026]
[1729426563604,0.45951282,68473.0,68472.0,0.13148801]
[1729426563796,0.45951282,68473.0,68472.0,0.073026]
[1729426566099,0.45951282,68473.0,68472.0,0.13148801]
[1729426566599,0.45951282,68473.0,68472.0,0.073026]
[1729426568902,0.45951282,68473.0,68472.0,0.11686416]
[1729426570002,0.45951282,68473.0,68472.0,0.073026]
[1729426570909,0.45951282,68473.0,68472.0,0.11686107]
[1729426571208,0.45951282,68473.0,68472.0,0.073026]
[1729426573507,0.45951282,68473.0,68472.0,0.04383399]
[1729426576310,0.46709444,68473.0,68469.0,0.13149101]
[1729426576616,0.073028,68471.0,68469.0,0.073029]
[1729426576808,0.08060662,68470.0,68469.0,0.073029]
[1729426577408,0.15363462,68470.0,68469.0,0.073029]
[1729426579820,0.1087986,68470.0,68469.0,0.073029]
[1729426580016,0.15363432,68470.0,68469.0,0.073029]
[1729426581423,0.1087986,68470.0,68469.0,0.073029]
[1729426581606,0.15363422,68470.0,68469.0,0.073029]
[1729426584423,0.073028,68470.0,68469.0,0.17798278]
[1729426587424,0.073028,68470.0,68469.0,0.17800178]
[1729426591423,0.073028,68470.0,68469.0,0.073029]
[1729426592026,0.073028,68470.0,68469.0,0.14609506]
[1729426593230,0.073028,68470.0,68469.0,0.25107039]
[1729426594429,0.073028,68470.0,68469.0,0.17800433]
[1729426597035,0.073028,68470.0,68469.0,0.14610524]
[1729426598636,0.1087981,68470.0,68469.0,0.073029]
[1729426600533,0.10879797,68470.0,68469.0,0.073029]
[1729426600730,0.073028,68470.0,68469.0,0.073029]
[1729426601232,0.03577004,68470.0,68469.0,0.073029]
[1729426601433,0.38648782,68473.0,68472.0,0.073026]
[1729426601634,0.42225755,68473.0,68472.0,0.073026]
[1729426602033,0.42225753,68473.0,68472.0,0.073026]
[1729426603434,0.46709246,68473.0,68472.0,0.073026]
[1729426606543,0.38648782,68473.0,68472.0,0.17830414]
[1729426609247,0.45951282,68473.0,68472.0,0.10527814]
[1729426613544,0.073027,68471.0,68468.0,0.07303]
[1729426613739,0.03576917,68470.0,68468.0,0.07303]
[1729426613949,0.073027,68471.0,68468.0,0.07303]
[1729426613950,0.03576917,68469.0,68468.0,0.07303]
[1729426614853,0.10879817,68469.0,68468.0,0.07303]
[1729426617245,0.073034,68465.0,68464.0,0.073034]
[1729426617449,0.10880317,68465.0,68464.0,0.073034]
[1729426620153,0.073034,68465.0,68464.0,0.073034]
[1729426621248,0.0308,68468.0,68467.0,0.073031]
[1729426621442,0.06656989,68468.0,68467.0,0.073031]
[1729426621643,0.0308,68468.0,68467.0,0.30347814]
[1729426622750,0.0308,68468.0,68467.0,0.30344936]
[1729426624546,0.10383,68468.0,68467.0,0.30344936]
[1729426624753,0.10383,68468.0,68467.0,0.30343261]
[1729426628652,0.13959966,68468.0,68467.0,0.073031]
[1729426629756,0.13959969,68468.0,68467.0,0.073031]
[1729426633654,0.06656969,68468.0,68467.0,0.073031]
[1729426634560,0.13959969,68468.0,68467.0,0.073031]
[1729426636652,0.10383,68468.0,68467.0,0.30100173]
[1729426637250,0.10383,68468.0,68467.0,0.17703406]
[1729426639757,0.10383,68468.0,68467.0,0.30093189]
[1729426640057,0.10383,68468.0,68467.0,0.3009373]
[1729426641258,0.10383,68468.0,68467.0,0.1770022]
[1729426641861,0.10383,68468.0,68467.0,0.3009563]
[1729426642665,0.10383,68468.0,68467.0,0.1770022]
[1729426642965,0.10383,68468.0,68467.0,0.30097485]
[1729426643163,0.10383,68468.0,68467.0,0.30094865]
[1729426643367,0.10383,68468.0,68467.0,0.1770022]
[1729426643756,0.18443516,68468.0,68467.0,0.073031]
[1729426651755,0.10383,68468.0,68467.0,0.17704687]
[1729426652751,0.10383,68468.0,68467.0,0.26474014]
[1729426653965,0.10383,68468.0,68467.0,0.17704687]
[1729426654355,0.10383,68468.0,68467.0,0.26473918]
[1729426655065,0.10383,68468.0,68467.0,0.26473798]
[1729426657056,0.10383,68468.0,68467.0,0.17704687]
[1729426657266,0.10383,68468.0,68467.0,0.26473591]
[1729426657563,0.10383,68468.0,68467.0,0.17704687]
[1729426658561,0.10383,68468.0,68467.0,0.26473646]
[1729426658760,0.10383,68468.0,68467.0,0.073031]
[1729426666772,0.18443642,68468.0,68467.0,0.073031]
[1729426668868,0.18443637,68468.0,68467.0,0.073031]
[1729426673874,0.10383,68468.0,68467.0,0.1770401]
[1729426678670,0.10383,68468.0,68467.0,0.17705332]
[1729426681876,0.10383,68468.0,68467.0,0.073031]
[1729426689697,0.13959953,68468.0,68467.0,0.073031]
[1729426690789,0.18443412,68468.0,68467.0,0.073031]
[1729426693283,0.18443412,68468.0,68461.0,0.033]
[1729426693284,0.0308,68468.0,68461.0,0.033]
[1729426693487,0.433836,68464.0,68463.0,0.073034]
[1729426693688,0.71952905,68464.0,68463.0,0.073034]
[1729426693883,0.75530099,68464.0,68463.0,0.073034]
[1729426694081,0.35872905,68464.0,68463.0,0.073034]
[1729426694775,0.39450073,68464.0,68463.0,0.073034]
[1729426696080,0.073035,68463.0,68458.0,0.07304]
[1729426696281,0.073039,68460.0,68454.0,0.43583]
[1729426696580,0.28569305,68464.0,68458.0,0.07304]
[1729426696581,0.07304,68459.0,68458.0,0.07304]
[1729426699982,0.09871804,68459.0,68458.0,0.07304]
[1729426703398,0.02567804,68459.0,68458.0,0.07304]
[1729426703589,0.073036,68463.0,68462.0,0.073036]
[1729426703897,0.10880997,68463.0,68462.0,0.073036]
[1729426704086,0.073036,68463.0,68462.0,0.073036]
[1729426706999,0.09923547,68463.0,68462.0,0.073036]
[1729426712997,0.073038,68460.0,68459.0,0.04377856]
[1729426713409,0.073038,68460.0,68459.0,0.11681856]
[1729426714098,0.073038,68460.0,68459.0,0.07304]
[1729426716694,0.09897958,68460.0,68459.0,0.07304]
[1729426719810,0.13475339,68460.0,68459.0,0.07304]
[1729426721502,0.17959298,68460.0,68459.0,0.07304]
[1729426721899,0.13475339,68460.0,68459.0,0.07304]
[1729426722101,0.17959276,68460.0,68459.0,0.07304]
[1729426722314,0.13475339,68460.0,68459.0,0.07304]
[1729426726611,0.02594158,68460.0,68458.0,0.05837142]
[1729426726808,0.0311,68459.0,68457.0,0.05837142]
[1729426727012,0.073041,68458.0,68457.0,0.13141342]
[1729426727231,0.073041,68458.0,68457.0,0.073042]
[1729426741836,0.10881815,68458.0,68457.0,0.073042]
[1729426745434,0.10881835,68458.0,68457.0,0.073042]
[1729426745632,0.073045,68454.0,68453.0,0.14834691]
[1729426745836,0.433845,68454.0,68453.0,0.14834691]
[1729426748144,0.46962263,68454.0,68453.0,0.14834691]
[1729426748445,0.433845,68454.0,68453.0,0.14834691]
[1729426748832,0.46962243,68454.0,68453.0,0.14834691]
[1729426749644,0.433845,68454.0,68453.0,0.14834691]
[1729426754848,0.4597267,68454.0,68453.0,0.14834691]
[1729426756641,0.49550445,68454.0,68453.0,0.14834691]
[1729426760358,0.49542987,68454.0,68453.0,0.14834691]
[1729426764652,0.45965212,68454.0,68453.0,0.14834691]
[1729426769061,0.45965212,68454.0,68453.0,0.146156]
[1729426769965,0.45965212,68454.0,68453.0,0.20462019]
[1729426771063,0.45965212,68454.0,68453.0,0.146156]
[1729426771864,0.49543016,68454.0,68453.0,0.146156]
[1729426773164,0.54027571,68454.0,68453.0,0.146156]
[1729426774466,0.49543016,68454.0,68453.0,0.146156]
[1729426779758,0.45965212,68454.0,68453.0,0.146156]
[1729426781066,0.09885212,68454.0,68453.0,0.146156]
[1729426781573,0.45965212,68454.0,68453.0,0.146156]
[1729426782268,0.09885212,68454.0,68453.0,0.146156]
[1729426782576,0.45965212,68454.0,68453.0,0.146156]
[1729426783072,0.09885212,68454.0,68453.0,0.146156]
[1729426783275,0.45965212,68454.0,68453.0,0.146156]
[1729426783480,0.09885212,68454.0,68453.0,0.146156]
[1729426783780,0.45965212,68454.0,68453.0,0.146156]
[1729426784566,0.09885212,68454.0,68453.0,0.146156]
[1729426784882,0.45965212,68454.0,68453.0,0.146156]
[1729426785085,0.09885212,68454.0,68453.0,0.146156]
[1729426785373,0.45965212,68454.0,68453.0,0.146156]
[1729426786166,0.09885212,68454.0,68453.0,0.146156]
[1729426786779,0.49543032,68454.0,68453.0,0.146156]
[1729426786978,0.13463032,68454.0,68453.0,0.146156]
[1729426787179,0.49543032,68454.0,68453.0,0.146156]
[1729426787679,0.13463032,68454.0,68453.0,0.146156]
[1729426787983,0.49543032,68454.0,68453.0,0.146156]
[1729426789181,0.13463032,68454.0,68453.0,0.146156]
[1729426789480,0.49543032,68454.0,68453.0,0.146156]
[1729426789679,0.13463032,68454.0,68453.0,0.146156]
[1729426789878,0.49543032,68454.0,68453.0,0.146156]
[1729426790483,0.13463032,68454.0,68453.0,0.146156]
[1729426790774,0.49543032,68454.0,68453.0,0.146156]
[1729426793587,0.49543021,68454.0,68453.0,0.146156]
[1729426794787,0.09885212,68454.0,68453.0,0.146156]
[1729426794976,0.45965212,68454.0,68453.0,0.146156]
[1729426796486,0.09885212,68454.0,68453.0,0.146156]
[1729426796786,0.45965212,68454.0,68453.0,0.146156]
[1729426796970,0.09885212,68454.0,68453.0,0.146156]
[1729426797681,0.45965212,68454.0,68453.0,0.146156]
[1729426801290,0.073046,68453.0,68452.0,0.07311]
[1729426801691,0.073046,68453.0,68452.0,0.146157]
[1729426803490,0.073049,68450.0,68449.0,0.07311]
[1729426803793,0.073049,68450.0,68449.0,0.14616]
[1729426805579,0.07305,68449.0,68448.0,0.07311]
[1729426807185,0.07305,68449.0,68446.0,0.07311]
[1729426807378,0.7474817,68454.0,68446.0,0.146163]
[1729426807379,0.433852,68447.0,68446.0,0.146163]
[1729426811296,0.433852,68447.0,68446.0,0.17262429]
[1729426815095,0.073052,68447.0,68446.0,0.17262429]
[1729426816588,0.0988869,68447.0,68446.0,0.17262429]
[1729426824611,0.073052,68447.0,68446.0,0.17262429]
[1729426826711,0.073052,68447.0,68446.0,0.24570419]
[1729426826907,0.073052,68447.0,68446.0,0.35024999]
[1729426827609,0.073052,68447.0,68446.0,0.24570419]
[1729426828521,0.073052,68447.0,68446.0,0.35030182]
[1729426829015,0.073052,68447.0,68446.0,0.35031858]
[1729426830306,0.073052,68447.0,68446.0,0.17262429]
[1729426830706,0.073052,68447.0,68446.0,0.24570419]
[1729426831519,0.073052,68447.0,68446.0,0.3503622]
[1729426831713,0.073052,68447.0,68446.0,0.24570419]
[1729426832218,0.073052,68447.0,68446.0,0.17262429]
[1729426834816,0.073052,68447.0,68446.0,0.17282429]
[1729426838623,0.433852,68447.0,68446.0,0.17282429]
[1729426838819,0.466252,68447.0,68446.0,0.17282429]
[1729426839612,0.50203354,68447.0,68446.0,0.17282429]
[1729426840325,0.466252,68447.0,68446.0,0.17282429]
[1729426844133,0.466252,68447.0,68446.0,0.23128982]
[1729426847121,0.466252,68447.0,68446.0,0.17282429]
[1729426854930,0.466252,68447.0,68446.0,0.23128982]
[1729426856936,0.105452,68447.0,68446.0,0.23128982]
[1729426857137,0.466252,68447.0,68446.0,0.23128982]
[1729426857736,0.466252,68447.0,68446.0,0.17282429]
[1729426861459,0.466252,68447.0,68445.0,0.05846553]
[1729426861661,0.466252,68447.0,68446.0,0.073053]
[1729426862458,0.50203497,68447.0,68446.0,0.073053]
[1729426862768,0.14123497,68447.0,68446.0,0.073053]
[1729426862949,0.50203497,68447.0,68446.0,0.073053]
[1729426863862,0.14123497,68447.0,68446.0,0.073053]
[1729426864255,0.50203497,68447.0,68446.0,0.073053]
[1729426864662,0.073053,68446.0,68445.0,0.02613744]
[1729426864854,0.073055,68445.0,68444.0,0.073055]
[1729426865055,0.10903797,68445.0,68444.0,0.073055]
[1729426865457,0.10903864,68445.0,68444.0,0.073055]
[1729426865957,0.46983864,68445.0,68444.0,0.073055]
[1729426869268,0.44163716,68445.0,68441.0,0.05892446]
[1729426869468,0.073058,68442.0,68441.0,0.05892446]
[1729426869669,0.073258,68442.0,68441.0,0.23682659]
[1729426871670,0.073258,68442.0,68441.0,0.16376759]
[1729426872577,0.073258,68442.0,68441.0,0.13684313]
[1729426872776,0.073258,68442.0,68441.0,0.032]
[1729426873871,0.073258,68442.0,68441.0,0.13685402]
[1729426874078,0.073258,68442.0,68441.0,0.032]
[1729426874371,0.073258,68442.0,68441.0,0.10481359]
[1729426874676,0.073258,68442.0,68441.0,0.07281359]
[1729426875276,0.073258,68442.0,68441.0,0.14589183]
[1729426875778,0.073258,68442.0,68441.0,0.07307824]
[1729426875966,0.073059,68441.0,68440.0,0.14613824]
[1729426876161,0.073259,68441.0,68440.0,0.14613824]
[1729426876768,0.073259,68441.0,68440.0,0.07306]
[1729426876963,0.073259,68441.0,68440.0,0.14612982]
[1729426877772,0.073259,68441.0,68440.0,0.07306]
[1729426878369,0.434059,68441.0,68440.0,0.07306]
[1729426879483,0.361,68441.0,68434.0,0.03319168]
[1729426879872,0.0002,68435.0,68434.0,0.10625768]
[1729426889586,0.0002,68435.0,68434.0,0.21082958]
[1729426891483,0.0002,68435.0,68434.0,0.2086379]
[1729426893792,0.0002,68435.0,68434.0,0.20867988]
[1729426895680,0.0002,68435.0,68434.0,0.29635746]
[1729426896485,0.0002,68435.0,68434.0,0.20867988]
[1729426899582,0.0002,68435.0,68434.0,0.33339378]
[1729426899885,0.0002,68435.0,68434.0,0.104066]
[1729426906782,0.0002,68435.0,68434.0,0.20869509]
[1729426907196,0.0002,68435.0,68434.0,0.29642283]
[1729426908200,0.0002,68435.0,68434.0,0.20869509]
[1729426909093,0.0002,68435.0,68434.0,0.17769509]
[1729426909293,0.0002,68435.0,68434.0,0.30230386]
[1729426913101,0.0002,68435.0,68434.0,0.30220578]
[1729426916899,0.0002,68435.0,68434.0,0.1776024]
[1729426917100,0.0002,68435.0,68434.0,0.30237048]
[1729426917303,0.0002,68435.0,68434.0,0.30237594]
[1729426917501,0.0002,68435.0,68434.0,0.30239166]
[1729426917701,0.0002,68435.0,68434.0,0.1776024]
[1729426917896,0.0002,68435.0,68434.0,0.177759]
[1729426918202,0.0002,68435.0,68434.0,0.30252944]
[1729426919390,0.0002,68435.0,68434.0,0.177759]
[1729426920898,0.0002,68435.0,68434.0,0.26547585]
[1729426921901,0.0002,68435.0,68434.0,0.073066]
[1729426930114,0.0002,68435.0,68434.0,0.1776485]
[1729426931015,0.0002,68435.0,68434.0,0.26534267]
[1729426931202,0.0002,68435.0,68434.0,0.1776485]
[1729426933306,0.0002,68435.0,68434.0,0.26534115]
[1729426933509,0.0002,68435.0,68434.0,0.1776485]
[1729426935308,0.0002,68435.0,68434.0,0.17765882]
[1729426936010,0.0002,68435.0,68434.0,0.26534959]